lending/lending_fUSD_20251114
["ID","MTS","AMOUNT","RATE_DAILY","PERIOD"]
[393946013,1763125732186,-151.0,0.00030164,31]
[393946014,1763125732283,-170.0,0.00043,120]
[393946015,1763125732323,-997631.58672816,0.0005,120]
[393946016,1763125732354,-1000000.0,0.0005,120]
[393946017,1763125732385,-1000000.0,0.0005,120]
[393946018,1763125732415,-1000000.0,0.0005,120]
[393946019,1763125732444,-1000000.0,0.0005,120]
[393946020,1763125732473,-2047.41327184,0.0005,120]
[393946021,1763125736159,-997952.58672816,0.0005,120]
[393946022,1763125736186,-395.28961992,0.0005,120]
[393946023,1763125736212,-385.0,0.0005,120]
[393946024,1763125736237,-200.0,0.0005,120]
[393946025,1763125736268,-200.25200364,0.0005,120]
[393946026,1763125736297,-200.0,0.0005,120]
[393946027,1763125736324,-476.08153496,0.0005,120]
[393946028,1763125736351,-3900.6274327,0.0005,120]
[393946029,1763125736379,-1872.31,0.0005,120]
[393946030,1763125736406,-236.04459156,0.0005,120]
[393946031,1763125736449,-2833.77374441,0.0005,120]
[393946032,1763125736479,-324.0,0.0005,30]
[393946033,1763125736510,-453.0,0.0005,120]
[393946034,1763125736539,-151.0,0.0005,120]
[393946035,1763125736569,-500.0,0.0005,120]
[393946036,1763125736598,-1208.02,0.00050042,30]
[393946037,1763125736626,-500.0,0.00050274,120]
[393946038,1763125736655,-152.0,0.000503,120]
[393946039,1763125736683,-2145.0,0.00050361,120]
[393946040,1763125736712,-4500.0,0.000505,120]
[393946041,1763125736741,-500.0,0.00050548,120]
[393946042,1763125736771,-300.0,0.00050633,120]
[393946043,1763125736799,-396.0,0.000508,120]
[393946044,1763125736826,-154.0,0.000508,120]
[393946045,1763125736855,-500.0,0.00050822,120]
[393946046,1763125736888,-1256.59930677,0.000509,120]
[393946047,1763125736921,-1000000.0,0.00051,120]
[393946048,1763125736952,-1000000.0,0.00051,120]
[393946049,1763125736984,-1000000.0,0.00051,120]
[393946050,1763125737017,-978308.41503788,0.00051,120]
[393946051,1763125740676,-434.61800939,0.00045179,60]
[393946052,1763125740709,-21691.58496212,0.00051,120]
[393946053,1763125740744,-1000000.0,0.00051,120]
[393946054,1763125740776,-1000000.0,0.00051,120]
[393946055,1763125740804,-1453.7564003,0.00051,120]
[393946056,1763125740832,-1173.0,0.00051,120]
[393946057,1763125740859,-650.72722559,0.00051,120]
[393946058,1763125740885,-488.05976017,0.00051,60]
[393946059,1763125740912,-500.0,0.00051096,120]
[393946060,1763125740939,-152.0,0.000511,120]
[393946061,1763125740965,-350.0,0.000513,120]
[393946062,1763125740996,-625.4,0.0005137,120]
[393946063,1763125741024,-1856.37,0.000516,120]
[393946064,1763125741054,-1856.37,0.000516,120]
[393946065,1763125741081,-1856.37,0.000516,120]
[393946066,1763125741110,-150.0,0.00051755,30]
[393946067,1763125741138,-150.0,0.00051755,30]
[393946068,1763125741165,-150.0,0.00051755,30]
[393946069,1763125741193,-150.0,0.00051755,30]
[393946070,1763125741220,-187.85994299,0.00051755,30]
[393946071,1763125741471,-500.0,0.00051755,30]
[393946072,1763125741499,-500.0,0.00051755,30]
[393946073,1763125741527,-500.0,0.00051755,30]
[393946074,1763125741553,-150.0,0.00051755,30]
[393946075,1763125741581,-150.0,0.00051755,30]
[393946076,1763125741608,-245.22122182,0.00051755,30]
[393946077,1763125741636,-1648.0,0.000518,120]
[393946078,1763125741664,-154.0,0.000518,120]
[393946079,1763125741692,-152.0,0.000519,120]
[393946080,1763125741721,-50000.0,0.00052,74]
[393946081,1763125741748,-1650.09668569,0.00052,120]
[393946082,1763125741783,-1000000.0,0.00052,120]
[393946083,1763125741812,-1000000.0,0.00052,120]
[393946084,1763125741847,-910474.56579193,0.00052,120]
[393946085,1763125743160,300.0,0.00016583,2]
[393946086,1763125751130,232.282002,0.00016501,2]
[393946087,1763125811210,151.0,0.00016584,2]
[393946088,1763125811930,151.0,0.00016584,2]
[393946089,1763125812544,151.0,0.00016584,2]
[393946090,1763125813270,151.0,0.00016584,2]
[393946091,1763125813925,151.0,0.00016584,2]
[393946092,1763125814597,151.0,0.00016584,2]
[393946093,1763125815219,151.0,0.00016584,2]
[393946094,1763125815841,151.0,0.00016584,2]
[393946095,1763125816475,151.0,0.00016584,2]
[393946096,1763125817176,151.0,0.00016584,2]
[393946097,1763125817813,151.0,0.00016584,2]
[393946098,1763125818471,151.0,0.00016584,2]
[393946099,1763125819111,151.0,0.00016584,2]
[393946100,1763125819830,151.0,0.00016584,2]
[393946101,1763125820632,151.0,0.00016584,2]
[393946102,1763125821338,151.0,0.00016584,2]
[393946103,1763125821981,151.0,0.00016584,2]
[393946104,1763125822608,151.0,0.00016584,2]
[393946105,1763125823232,151.0,0.00016584,2]
[393946106,1763125823860,151.0,0.00016584,2]
[393946115,1763125831462,-470.7871,0.00016584,2]
[393946116,1763125831472,-2657.03760001,0.00016584,2]
[393946119,1763125831622,-1303.47621283,0.00016584,2]
[393946120,1763125831681,-3424.66488716,0.00016584,2]
[393946121,1763125831691,-2500.0,0.00016584,2]
[393946122,1763125831701,-195.0,0.00016585,2]
[393946123,1763125831711,-3576.18492491,0.00016586,2]
[393946124,1763125831721,-164.37462768,0.00016586,2]
[393946125,1763125831731,-512.74339849,0.00016673,2]
[393946126,1763125831740,-504.98080997,0.00016673,2]
[393946127,1763125831750,-500.0,0.00016673,2]
[393946128,1763125831759,-500.0,0.00016673,2]
[393946129,1763125831769,-627.29851644,0.00016673,2]
[393946130,1763125831779,-500.0,0.00016673,2]
[393946131,1763125831788,-189.97579509,0.00016673,2]
[393946132,1763125831798,-602.97,0.00016674,2]
[393946134,1763125831808,-151.0,0.00016674,2]
[393946136,1763125831818,-151.0,0.00016674,2]
[393946139,1763125831832,-196.95426755,0.00016674,2]
[393946140,1763125831842,-14127.57274379,0.00016683,2]
[393946143,1763125831861,-261.09249977,0.00016683,2]
[393946145,1763125831871,-500.0,0.00016683,2]
[393946147,1763125831882,-500.0,0.00016683,2]
[393946149,1763125831893,-500.0,0.00016683,2]
[393946151,1763125831903,-500.0,0.00016683,2]
[393946153,1763125831912,-500.0,0.00016683,2]
[393946154,1763125831922,-500.0,0.00016683,2]
[393946155,1763125831933,-500.0,0.00016683,2]
[393946156,1763125831943,-500.0,0.00016683,2]
[393946157,1763125831953,-500.0,0.00016683,2]
[393946158,1763125831963,-500.0,0.00016683,2]
[393946159,1763125831973,-648.02751457,0.00016683,2]
[393946162,1763125831986,-500.0,0.00016683,2]
[393946164,1763125831995,-500.0,0.00016683,2]
[393946167,1763125832005,-596.42430038,0.00016683,2]
[393946169,1763125832014,-563.03311375,0.00016683,2]
[393946171,1763125832024,-500.0,0.00016683,2]
[393946173,1763125832037,-500.0,0.00016683,2]
[393946175,1763125832047,-500.0,0.00016683,2]
[393946177,1763125832057,-500.0,0.00016683,2]
[393946178,1763125832068,-500.0,0.00016683,2]
[393946179,1763125832084,-500.0,0.00016683,2]
[393946180,1763125832093,-500.0,0.00016683,2]
[393946181,1763125832108,-500.0,0.00016683,2]
[393946182,1763125832119,-500.0,0.00016683,2]
[393946183,1763125832128,-500.0,0.00016683,2]
[393946184,1763125832137,-500.0,0.00016683,2]
[393946185,1763125832148,-500.0,0.00016683,2]
[393946186,1763125832158,-500.0,0.00016683,2]
[393946187,1763125832167,-500.0,0.00016683,2]
[393946188,1763125832177,-500.0,0.00016683,2]
[393946189,1763125832186,-500.0,0.00016683,2]
[393946190,1763125832197,-500.0,0.00016683,2]
[393946191,1763125832206,-226.10197368,0.00016683,2]
[393946192,1763125832216,-272.89615497,0.00016683,2]
[393946193,1763125832225,-500.0,0.00016683,2]
[393946194,1763125832235,-500.0,0.00016683,2]
[393946195,1763125832246,-500.0,0.00016683,2]
[393946196,1763125832255,-412.32847296,0.00016683,2]
[393946197,1763125832265,-500.0,0.00016683,2]
[393946198,1763125832274,-500.0,0.00016683,2]
[393946199,1763125832284,-500.0,0.00016683,2]
[393946200,1763125832294,-500.0,0.00016683,2]
[393946201,1763125832304,-500.0,0.00016683,2]
[393946202,1763125832314,-500.0,0.00016683,2]
[393946203,1763125832323,-500.0,0.00016683,2]
[393946204,1763125832333,-500.0,0.00016683,2]
[393946205,1763125832343,-500.0,0.00016683,2]
[393946206,1763125832355,-288.05984857,0.00016683,2]
[393946207,1763125832365,-500.0,0.00016683,2]
[393946208,1763125832375,-500.0,0.00016683,2]
[393946209,1763125832385,-500.0,0.00016683,2]
[393946210,1763125832395,-500.0,0.00016683,2]
[393946211,1763125832404,-500.0,0.00016683,2]
[393946212,1763125832415,-500.0,0.00016683,2]
[393946213,1763125832424,-500.0,0.00016683,2]
[393946214,1763125832434,-500.0,0.00016683,2]
[393946215,1763125832443,-500.0,0.00016683,2]
[393946216,1763125832453,-500.0,0.00016683,2]
[393946217,1763125832462,-499.99999999,0.00016683,2]
[393946218,1763125832472,-500.0,0.00016684,2]
[393946219,1763125832482,-500.0,0.00016684,2]
[393946220,1763125832491,-500.0,0.00016684,2]
[393946221,1763125832501,-232226.74045501,0.00016684,2]
[393946222,1763125832513,-19762.47710322,0.00016684,2]
[393946223,1763125832525,-805.848,0.00016684,2]
[393946224,1763125832536,-1367.65451555,0.00016684,2]
[393946225,1763125832548,-341.77769005,0.00016684,2]
[393946226,1763125832559,-14314.45430128,0.00016684,2]
[393946232,1763125837509,-1249.75727279,0.00016684,2]
[393946233,1763125837521,-447.75187811,0.00016684,2]
[393946234,1763125837618,-17151.750196,0.00016684,2]
[393946235,1763125837630,-312.87,0.00016684,2]
[393946422,1763125839576,-3155.2331717,0.00016684,2]
[393946429,1763125839636,-9554.11339898,0.00016684,2]
[393946805,1763125843384,-500.0,0.00016683,2]
[393946807,1763125843393,-674.95477403,0.00016684,2]
[393946820,1763125843507,-19079.65245821,0.00016684,2]
[393946822,1763125843519,-99554.96478507,0.00016684,2]
[393946824,1763125843528,-1000.0,0.00016686,2]
[393946826,1763125843537,-192.28,0.00016712,2]
[393946828,1763125843547,-3576.18492491,0.00016732,2]
[393946830,1763125843556,-500.0,0.00016786,2]
[393946832,1763125843565,-166.66,0.0001679,2]
[393946834,1763125843574,-164.37462762,0.00016805,2]
[393946836,1763125843584,-500.0,0.0001682,2]
[393946838,1763125843593,-3576.18492491,0.00016878,2]
[393946840,1763125843602,-689.17,0.00016881,2]
[393946842,1763125843612,-602.97,0.00016948,2]
[393946844,1763125843621,-166.7,0.00016953,2]
[393946846,1763125843630,-250.0,0.00017,2]
[393946848,1763125843639,-3576.18492491,0.00017024,2]
[393946850,1763125843648,-164.37462762,0.00017024,2]
[393946852,1763125843657,-522.12011615,0.00017091,2]
[393946854,1763125843666,-166.66,0.00017122,2]
[393946856,1763125843675,-1281.0,0.00017161,2]
[393946859,1763125843684,-3576.18492491,0.0001717,2]
[393946862,1763125843694,-255.72,0.00017179,2]
[393946865,1763125843703,-151.0,0.00017199,2]
[393946868,1763125843712,-700.0,0.000172,6]
[393946869,1763125843721,-151.0,0.0001721,2]
[393946870,1763125843730,-151.0,0.00017212,2]
[393946872,1763125843741,-504.65985304,0.00017221,2]
[393946874,1763125843750,-862.29547707,0.00017221,2]
[393946875,1763125843759,-602.97,0.00017222,2]
[393946876,1763125843769,-164.37462762,0.00017243,2]
[393946878,1763125843777,-151.0,0.00017244,2]
[393946879,1763125843786,-1500.0,0.000173,6]
[393946881,1763125843795,-1281.0,0.00017301,2]
[393946882,1763125843804,-3576.18492491,0.00017316,2]
[393946883,1763125843814,-226.0,0.00017319,2]
[393946884,1763125843823,-2200.0,0.000174,6]
[393946885,1763125843832,-226.0,0.00017418,2]
[393946886,1763125843841,-166.66,0.00017455,2]
[393946887,1763125843850,-164.37462762,0.00017462,2]
[393946888,1763125843861,-3576.18492491,0.00017462,2]
[393946889,1763125844011,-602.97,0.00017496,2]
[393946890,1763125844031,-1000.0,0.000175,2]
[393946891,1763125844042,-3000.0,0.000175,6]
[393946892,1763125844052,-226.0,0.00017529,2]
[393946893,1763125844063,-3700.0,0.000176,6]
[393946894,1763125844073,-3576.18492491,0.00017608,2]
[393946895,1763125844085,-3429.0,0.00017637,2]
[393946896,1763125844095,-1281.0,0.00017644,2]
[393946897,1763125844107,-1598.0,0.0001765,2]
[393946898,1763125844118,-821.0,0.0001765,2]
[393946899,1763125844128,-814.0,0.0001765,2]
[393946901,1763125844138,-1275.0,0.0001765,2]
[393946902,1763125844148,-2145.0,0.0001765,2]
[393946903,1763125844160,-6669.0,0.0001765,2]
[393946904,1763125844169,-560.0,0.0001765,2]
[393946905,1763125844180,-6486.0,0.0001765,2]
[393946906,1763125844190,-1428.041652,0.00017663,2]
[393946907,1763125844199,-164.37462762,0.00017681,2]
[393946908,1763125844209,-700.0,0.000177,6]
[393946909,1763125844219,-579.0,0.0001771,2]
[393946910,1763125844228,-3576.18492491,0.00017754,2]
[393946911,1763125844238,-602.97,0.0001777,2]
[393946912,1763125844248,-851.094,0.00017776,2]
[393946913,1763125844257,-250.0,0.00017791,2]
[393946914,1763125844267,-150.0,0.00017791,2]
[393946915,1763125844276,-150.0,0.00017791,2]
[393946916,1763125844286,-150.0,0.00017791,2]
[393946917,1763125844295,-575.0,0.00017791,2]
[393946919,1763125844304,-1318.0,0.00017791,2]
[393946921,1763125844314,-608.0,0.00017791,2]
[393946923,1763125844324,-700.0,0.000178,6]
[393946925,1763125844334,-1869.49752,0.0001782,2]
[393946927,1763125844343,-1136.812,0.00017846,2]
[393946928,1763125844353,-163.675,0.00017846,2]
[393946930,1763125844364,-200.0,0.00017856,2]
[393946932,1763125844373,-168.52466917,0.000179,2]
[393946933,1763125844383,-2500.0,0.000179,3]
[393946934,1763125844397,-700.0,0.000179,6]
[393946935,1763125844407,-154.56641318,0.000179,2]
[393946936,1763125844416,-164.37462762,0.000179,2]
[393946937,1763125844426,-3576.18492491,0.000179,2]
[393946938,1763125844436,-152.75816652,0.000179,2]
[393946939,1763125844446,-184.53194628,0.000179,2]
[393946940,1763125844456,-1281.0,0.00017901,2]
[393946941,1763125844466,-1869.49752,0.0001793,2]
[393946942,1763125844475,-500.0,0.00017973,2]
[393946943,1763125844485,-500.0,0.00017973,2]
[393946944,1763125844495,-502.30621364,0.00017973,2]
[393946945,1763125844505,-503.38945603,0.00017973,2]
[393946946,1763125844514,-501.53697119,0.00017973,2]
[393946947,1763125844524,-506.94383361,0.00017973,2]
[393946948,1763125844533,-500.0,0.00017973,2]
[393946949,1763125844543,-589.88555763,0.00017973,2]
[393946950,1763125844553,-500.0,0.00017973,2]
[393946951,1763125844562,-501.1339107,0.00017973,2]
[393946952,1763125844572,-500.0,0.00017973,2]
[393946953,1763125844582,-2404.5121687,0.00017982,2]
[393946954,1763125844595,-166.6003519,0.00017982,2]
[393946955,1763125844606,-23955.0534807,0.00017982,2]
[393946956,1763125844616,-2319.3811345,0.00017982,2]
[393946957,1763125844626,-2552.7791627,0.00017982,2]
[393946958,1763125844635,-500.0,0.00017998,2]
[393946959,1763125844645,-500.0,0.00017998,2]
[393946960,1763125844655,-500.0,0.00017998,2]
[393946961,1763125844665,-1043.29775265,0.00017999,5]
[393946962,1763125844674,-309.52096424,0.00017999,2]
[393946963,1763125844684,-1005.8282,0.00017999,2]
[393946964,1763125844694,-300.0,0.00017999,2]
[393946965,1763125844704,-1796.0,0.00018,2]
[393946966,1763125844714,-903868.65696719,0.00018,2]
[393946967,1763125844725,-2190326.87892384,0.00018,2]
[393946968,1763125844814,-2244.95237633,0.00018,2]
[393946969,1763125844836,-478.455,0.00018,2]
[393946971,1763125845735,-538.78965,0.00018,2]
[393946976,1763125861887,200.0,0.00041082,30]
[393946977,1763125885938,3297.727998,0.00016583,2]
[393946978,1763125885962,10000.01,0.00016583,2]
[393946979,1763125885985,10000.01,0.00016583,2]
[393946980,1763125886008,10000.01,0.00016583,2]
[393946981,1763125886032,10000.01,0.00016583,2]
[393946982,1763125886056,10000.01,0.00016583,2]
[393946983,1763125886079,10000.01,0.00016583,2]
[393946984,1763125886107,10000.01,0.00016583,2]
[393946985,1763125886131,10000.01,0.00016583,2]
[393946986,1763125886154,10000.01,0.00016583,2]
[393946987,1763125903979,-6780.5228138,0.00016583,2]
[393946988,1763125904082,-10000.01,0.00016583,2]
[393946989,1763125904217,-10000.01,0.00016583,2]
[393946990,1763125904344,-10000.01,0.00016583,2]
[393946991,1763125904451,-10000.01,0.00016583,2]
[393946992,1763125904581,-10000.01,0.00016583,2]
[393946993,1763125904704,-10000.01,0.00016583,2]
[393946994,1763125904910,-10000.01,0.00016583,2]
[393946995,1763125910055,-10000.01,0.00016583,2]
[393946996,1763125910198,-10000.01,0.00016583,2]
[393946997,1763125910316,-10000.01,0.00016583,2]
[393946998,1763125910427,-10000.01,0.00016583,2]
[393946999,1763125910559,-10000.01,0.00016583,2]
[393947000,1763125910674,-10000.01,0.00016583,2]
[393947001,1763125910797,-10000.01,0.00016583,2]
[393947002,1763125910932,-10000.01,0.00016583,2]
[393947003,1763125932111,-184.895181,0.00030164,31]
[393947004,1763125932152,-168.55,0.000321,30]
[393947005,1763125932197,-168.55,0.000344,30]
[393947006,1763125932239,-168.55,0.000362,30]
[393947007,1763125932273,-1002.17419488,0.00036957,30]
[393947008,1763125932305,-1002.63918199,0.00036957,30]
[393947009,1763125932335,-1004.05794995,0.00036957,30]
[393947010,1763125932367,-161.0,0.00037,37]
[393947011,1763125932396,-161.0,0.00037,120]
[393947012,1763125932426,-168.55,0.000376,30]
[393947013,1763125932463,-168.55,0.000389,30]
[393947014,1763125932501,-168.55,0.000401,30]
[393947015,1763125932543,-682.088,0.0004073,59]
[393947016,1763125932577,-161.0,0.00041,41]
[393947017,1763125932606,-614.6,0.00041,30]
[393947018,1763125932635,-151.0,0.00041082,120]
[393947019,1763125932663,-151.0,0.00041082,120]
[393947020,1763125932693,-155.231238,0.00041082,120]
[393947021,1763125932723,-151.0,0.00041082,120]
[393947022,1763125932752,-151.0,0.00041082,120]
[393947023,1763125932782,-151.0,0.00041082,120]
[393947024,1763125932814,-160.115813,0.00041082,120]
[393947025,1763125932849,-151.0,0.00041082,120]
[393947026,1763125932891,-151.0,0.00041082,120]
[393947027,1763125932925,-158.026109,0.00041082,120]
[393947028,1763125932955,-151.0,0.00041082,120]
[393947029,1763125932984,-151.0,0.00041082,120]
[393947030,1763125933012,-151.0,0.00041082,120]
[393947031,1763125933040,-151.0,0.00041082,120]
[393947032,1763125933067,-162.259663,0.00041082,30]
[393947033,1763125933095,-151.0,0.00041082,120]
[393947034,1763125933122,-151.0,0.00041082,120]
[393947035,1763125933151,-151.0,0.00041082,120]
[393947036,1763125933178,-151.0,0.00041082,120]
[393947037,1763125933209,-151.0,0.00041082,120]
[393947038,1763125933237,-151.0,0.00041082,120]
[393947039,1763125933266,-151.0,0.00041082,120]
[393947040,1763125933296,-151.0,0.00041082,120]
[393947041,1763125933325,-158.185804,0.00041082,120]
[393947042,1763125933354,-151.0,0.00041082,120]
[393947043,1763125933382,-154.991251,0.00041082,120]
[393947044,1763125933410,-155.678336,0.00041082,60]
[393947045,1763125933440,-151.0,0.00041082,120]
[393947046,1763125933468,-151.0,0.00041082,120]
[393947047,1763125933501,-151.0,0.00041082,120]
[393947048,1763125933535,-151.0,0.00041082,120]
[393947049,1763125933570,-151.0,0.00041082,120]
[393947050,1763125933603,-151.0,0.00041082,120]
[393947051,1763125933634,-151.0,0.00041082,120]
[393947052,1763125933664,-151.0,0.00041082,120]
[393947053,1763125933695,-245.813899,0.00041082,120]
[393947054,1763125933723,-151.0,0.00041082,120]
[393947055,1763125933751,-151.0,0.00041082,120]
[393947056,1763125933783,-151.0,0.00041082,120]
[393947057,1763125933817,-151.0,0.00041082,120]
[393947058,1763125933848,-151.0,0.00041082,120]
[393947059,1763125933878,-151.0,0.00041082,120]
[393947060,1763125933908,-151.0,0.00041082,120]
[393947061,1763125933938,-151.0,0.00041082,120]
[393947062,1763125933972,-151.0,0.00041082,120]
[393947063,1763125934001,-151.0,0.00041082,120]
[393947064,1763125934032,-151.0,0.00041082,120]
[393947065,1763125934062,-282.777792,0.00041082,120]
[393947066,1763125934092,-151.0,0.00041082,120]
[393947067,1763125934125,-151.0,0.00041082,120]
[393947068,1763125934157,-151.0,0.00041082,120]
[393947069,1763125934195,-151.0,0.00041082,120]
[393947070,1763125934227,-151.0,0.00041082,120]
[393947071,1763125934258,-151.0,0.00041082,120]
[393947072,1763125934288,-151.0,0.00041082,120]
[393947073,1763125934319,-151.0,0.00041082,120]
[393947074,1763125934348,-151.0,0.00041082,120]
[393947075,1763125934378,-151.0,0.00041082,120]
[393947076,1763125934407,-151.0,0.00041082,120]
[393947077,1763125934437,-175.603978,0.00041082,120]
[393947078,1763125934472,-151.0,0.00041082,120]
[393947079,1763125934502,-151.0,0.00041082,120]
[393947080,1763125934535,-151.0,0.00041082,120]
[393947081,1763125934565,-151.0,0.00041082,91]
[393947082,1763125934596,-151.0,0.00041082,120]
[393947083,1763125934624,-208.323219,0.00041082,120]
[393947084,1763125934656,-151.0,0.00041082,120]
[393947085,1763125934684,-152.079667,0.00041082,120]
[393947086,1763125934875,-176.287009,0.00041082,120]
[393947087,1763125934907,-157.204477,0.00041082,120]
[393947088,1763125934936,-151.000004,0.00041082,120]
[393947089,1763125934969,-151.0,0.00041082,120]
[393947090,1763125934998,-151.0,0.00041082,120]
[393947091,1763125935031,-151.0,0.00041082,120]
[393947092,1763125935070,-151.0,0.00041082,120]
[393947093,1763125935102,-151.0,0.00041082,120]
[393947094,1763125935139,-151.0,0.00041082,120]
[393947095,1763125935172,-151.0,0.00041082,120]
[393947096,1763125935205,-151.0,0.00041082,120]
[393947097,1763125935236,-151.0,0.00041082,120]
[393947098,1763125935266,-151.0,0.00041082,120]
[393947099,1763125935296,-151.0,0.00041082,120]
[393947100,1763125935326,-275.111809,0.00041082,120]
[393947101,1763125935357,-151.0,0.00041082,120]
[393947102,1763125935387,-188.266871,0.00041082,120]
[393947103,1763125935416,-151.0,0.00041082,120]
[393947104,1763125935447,-151.0,0.00041082,120]
[393947105,1763125935476,-151.0,0.00041082,120]
[393947106,1763125935506,-151.0,0.00041082,120]
[393947107,1763125935537,-272.04585,0.00041082,30]
[393947108,1763125935568,-272.04585,0.00041082,30]
[393947109,1763125935597,-272.04585,0.00041082,30]
[393947110,1763125935626,-272.04585,0.00041082,30]
[393947111,1763125935657,-272.04585,0.00041082,30]
[393947112,1763125935688,-272.04585,0.00041082,30]
[393947113,1763125935723,-272.04585,0.00041082,30]
[393947114,1763125935752,-272.04585,0.00041082,30]
[393947115,1763125935782,-272.04585,0.00041082,30]
[393947116,1763125935813,-272.04585,0.00041082,30]
[393947117,1763125935844,-272.04585,0.00041082,30]
[393947118,1763125935877,-272.04585,0.00041082,30]
[393947119,1763125935908,-272.04585,0.00041082,30]
[393947120,1763125935939,-272.04585,0.00041082,30]
[393947121,1763125935971,-151.0,0.00041082,120]
[393947122,1763125936003,-272.04585,0.00041082,30]
[393947123,1763125936034,-272.04585,0.00041082,30]
[393947124,1763125936066,-272.04585,0.00041082,30]
[393947125,1763125936097,-272.04585,0.00041082,30]
[393947126,1763125936130,-272.04585,0.00041082,30]
[393947127,1763125936160,-272.04585,0.00041082,30]
[393947128,1763125936194,-151.0,0.00041082,120]
[393947129,1763125936224,-151.0,0.00041082,120]
[393947130,1763125936253,-170.602622,0.00041082,120]
[393947131,1763125936283,-151.0,0.00041082,120]
[393947132,1763125936313,-151.0,0.00041082,120]
[393947133,1763125936344,-151.0,0.00041082,120]
[393947134,1763125936372,-151.0,0.00041082,120]
[393947135,1763125936402,-151.0,0.00041082,120]
[393947136,1763125936431,-151.0,0.00041082,120]
[393947137,1763125936462,-151.0,0.00041082,120]
[393947138,1763125936492,-151.0,0.00041082,120]
[393947139,1763125936523,-298.0,0.00041082,120]
[393947140,1763125936558,-151.0,0.00041082,120]
[393947141,1763125936592,-151.0,0.00041082,120]
[393947142,1763125936626,-151.0,0.00041082,120]
[393947143,1763125936659,-151.0,0.00041082,120]
[393947144,1763125936690,-151.0,0.00041082,120]
[393947145,1763125936722,-161.445298,0.00041082,120]
[393947146,1763125936751,-151.0,0.00041082,120]
[393947147,1763125936780,-151.0,0.00041082,120]
[393947148,1763125936810,-177.195218,0.00041082,120]
[393947149,1763125936839,-206.282403,0.00041082,120]
[393947150,1763125936869,-151.0,0.00041082,120]
[393947151,1763125936899,-153.174079,0.00041082,120]
[393947152,1763125936934,-151.0,0.00041082,120]
[393947153,1763125936968,-151.0,0.00041082,120]
[393947154,1763125937001,-151.0,0.00041082,120]
[393947155,1763125937034,-153.867829,0.00041082,120]
[393947156,1763125937066,-182.102192,0.00041082,120]
[393947157,1763125937100,-151.0,0.00041082,120]
[393947158,1763125937139,-151.0,0.00041082,120]
[393947159,1763125937172,-151.0,0.00041082,120]
[393947160,1763125937205,-151.0,0.00041082,120]
[393947161,1763125937235,-151.0,0.00041082,120]
[393947162,1763125937265,-273.171383,0.00041082,120]
[393947163,1763125937296,-151.0,0.00041082,120]
[393947164,1763125937328,-151.0,0.00041082,120]
[393947165,1763125937360,-151.0,0.00041082,120]
[393947166,1763125937393,-151.0,0.00041082,120]
[393947167,1763125937425,-151.0,0.00041082,120]
[393947168,1763125937457,-151.0,0.00041082,120]
[393947169,1763125937488,-222.983862,0.00041082,120]
[393947170,1763125937519,-151.0,0.00041082,120]
[393947171,1763125937550,-151.0,0.00041082,120]